[Event "41st Jacques-Lemans-Open 2022"]
[Site "St. Veit/Glan"]
[Date "2022.07.13"]
[Round "6.13"]
[White "Ofner, Maximilian"]
[Black "Bethke, Robert"]
[Result "0-1"]
[ECO "A09"]
[WhiteElo "2194"]
[BlackElo "2070"]
[Annotator "ChessBase"]
[PlyCount "82"]
[EventDate "2022.07.09"]
[EventType "swiss"]
[EventCountry "AUT"]
[SourceTitle "playchess.com"]
[Source "ChessBase"]
[SourceQuality "1"]
[TimeControl "40/5400+30:1800+30"]

1. Nf3 {[%emt 0:00:16]} d5 {[%emt 0:00:02]} 2. c4 {[%emt 0:00:05]} d4 {[%emt 0:00:03]} 3. b4 {[%emt 0:00:46]} c5 {[%emt 0:00:07]} 4. e3 {[%emt 0:00:46]} dxe3 {[%emt 0:03:04]} 5. fxe3 {[%emt 0:02:01]} cxb4 {[%emt 0:01:14]} 6. a3 {[%emt 0:00:42]} e6 {[%emt 0:00:50]} 7. axb4 {[%emt 0:01:23]} Bxb4 {[%emt 0:05:54]} 8. Be2 {[%emt 0:08:35]} Nf6 {[%emt 0:00:50]} 9. O-O {[%emt 0:09:02]} O-O {[%emt 0:00:09]} 10. Qb3 {[%emt 0:03:18]} Nc6 {[%emt 0:03:41]} 11. d4 {[%emt 0:01:05]} Bd6 {[%emt 0:01:06]} 12. Nc3 {[%emt 0:03:27]} e5 {[%emt 0:03:57]} 13. d5 {[%emt 0:10:17]} e4 {[%emt 0:01:09]} 14. dxc6 {[%emt 0:01:30]} exf3 {[%emt 0:00:09]} 15. Bxf3 {[%emt 0:05:18]} bxc6 {[%emt 0:03:53]} 16. Ba3 {[%emt 0:01:50]} Bxa3 {[%emt 0:02:49]} 17. Rxa3 {[%emt 0:03:01]} Qe7 {[%emt 0:04:12]} 18. Bxc6 {[%emt 0:06:59]} Rb8 {[%emt 0:00:04]} 19. Qxb8 {[%emt 0:02:05]} Qxa3 {[%emt 0:00:03]} 20. Qe5 {[%emt 0:04:14]} Be6 {[%emt 0:02:35]} 21. Bd5 {[%emt 0:12:16]} Qc5 {[%emt 0:03:23]} 22. Qd4 {[%emt 0:09:32]} Qxd4 {[%emt 0:00:42]} 23. exd4 {[%emt 0:00:02]} Bxd5 {[%emt 0:00:13]} 24. Nxd5 {[%emt 0:00:44]} Nxd5 {[%emt 0:00:05]} 25. cxd5 {[%emt 0:00:03]} Rd8 {[%emt 0:00:06]} 26. Rb1 {[%emt 0:02:30]} Kf8 {[%emt 0:04:34]} 27. Rb5 {[%emt 0:00:11]} Ke7 {[%emt 0:00:11]} 28. Ra5 {[%emt 0:01:08]} Rd7 {[%emt 0:00:14]} 29. Kf2 {[%emt 0:00:12]} Kd6 {[%emt 0:00:19]} 30. Ke3 {[%emt 0:00:58]} Re7+ {[%emt 0:03:38]} 31. Kd3 {[%emt 0:01:37]} Rc7 {[%emt 0:00:05]} 32. g4 {[%emt 0:00:51]} h6 {[%emt 0:00:20]} 33. h4 {[%emt 0:00:50]} Rb7 {[%emt 0:06:33]} 34. Kc4 {[%emt 0:00:30]} Rc7+ {[%emt 0:00:40]} 35. Rc5 {[%emt 0:03:08]} a6 {[%emt 0:01:30]} 36. h5 {[%emt 0:04:36]} f6 {[%emt 0:05:15]} 37. Kd3 {[%emt 0:02:04]} Rxc5 {[%emt 0:00:13]} 38. dxc5+ {[%emt 0:00:02]} Kxd5 {[%emt 0:00:24]} 39. Ke3 {[%emt 0:00:45]} Kxc5 {[%emt 0:00:07]} 40. Kf4 {[%emt 0:00:04]} Kd6 {[%emt 0:00:34]} 41. Kf5 {[%emt 0:30:07]} Ke7 {[%emt 0:30:05]} 0-1

[Event "41st Jacques-Lemans-Open 2022"]
[Site "St. Veit/Glan"]
[Date "2022.07.13"]
[Round "6.14"]
[White "Kempe, Caius Emilian"]
[Black "Frank, Emanuel"]
[Result "0-1"]
[ECO "D31"]
[WhiteElo "1877"]
[BlackElo "2160"]
[Annotator "ChessBase"]
[PlyCount "84"]
[EventDate "2022.07.09"]
[EventType "swiss"]
[EventCountry "AUT"]
[SourceTitle "playchess.com"]
[Source "ChessBase"]
[SourceQuality "1"]
[TimeControl "40/5400+30:1800+30"]

1. d4 {[%emt 0:00:02]} d5 {[%emt 0:00:08]} 2. c4 {[%emt 0:00:06]} e6 {[%emt 0:00:04]} 3. Nc3 {[%emt 0:00:05]} a6 {[%emt 0:00:07]} 4. cxd5 {[%emt 0:01:03]} exd5 {[%emt 0:00:06]} 5. Nf3 {[%emt 0:02:05]} h6 {[%emt 0:00:24]} 6. Bf4 {[%emt 0:07:03]} Nf6 {[%emt 0:00:28]} 7. Qc2 {[%emt 0:03:50]} c5 {[%emt 0:08:22]} 8. dxc5 {[%emt 0:11:07]} Bxc5 {[%emt 0:00:28]} 9. e3 {[%emt 0:01:18]} Nc6 {[%emt 0:02:02]} 10. Be2 {[%emt 0:02:03]} O-O {[%emt 0:01:59]} 11. O-O {[%emt 0:00:19]} Be6 {[%emt 0:04:45]} 12. Rfd1 {[%emt 0:08:15]} Ba7 {[%emt 0:03:47]} 13. Ne5 {[%emt 0:08:32]} Ne7 {[%emt 0:15:39]} 14. Bf3 {[%emt 0:04:53]} Rc8 {[%emt 0:02:45]} 15. Qe2 {[%emt 0:00:50]} Qa5 {[%emt 0:18:25]} 16. a3 {[%emt 0:26:05]} Rfd8 {[%emt 0:09:03]} 17. Rd2 {[%emt 0:04:59]} b5 {[%emt 0:15:23]} 18. Rad1 {[%emt 0:00:14]} Qb6 {[%emt 0:03:47]} 19. h3 {[%emt 0:01:30]} Qb7 {[%emt 0:01:16]} 20. Ng4 {[%emt 0:05:16]} Nh7 {[%emt 0:04:36]} 21. Be5 {[%emt 0:02:56]} Ng5 {[%emt 0:01:49]} 22. Bd4 {[%emt 0:00:36]} Bb8 {[%emt 0:01:01]} 23. h4 {[%emt 0:02:38]} Ne4 {[%emt 0:01:20]} 24. Rc2 {[%emt 0:05:01]} Nf5 {[%emt 0:02:07]} 25. g3 {[%emt 0:01:17]} Nxd4 {[%emt 0:02:00]} 26. Rxd4 {[%emt 0:00:01]} Nxc3 {[%emt 0:00:40]} 27. bxc3 {[%emt 0:00:59]} h5 {[%emt 0:00:21]} 28. Nh2 {[%emt 0:00:01]} Be5 {[%emt 0:00:26]} 29. Rd1 {[%emt 0:00:47]} Rxc3 {[%emt 0:00:45]} 30. Rxc3 {[%emt 0:00:39]} Bxc3 {[%emt 0:00:00]} 31. Bxh5 {[%emt 0:00:01]} a5 {[%emt 0:00:00]} 32. Bg4 {[%emt 0:00:53]} Bxg4 {[%emt 0:00:00]} 33. Nxg4 {[%emt 0:00:24]} b4 {[%emt 0:00:00]} 34. axb4 {[%emt 0:00:06]} Qxb4 {[%emt 0:00:04]} 35. h5 {[%emt 0:00:07]} a4 {[%emt 0:00:48]} 36. h6 {[%emt 0:00:07]} a3 {[%emt 0:00:39]} 37. hxg7 {[%emt 0:01:12]} Bxg7 {[%emt 0:01:03]} 38. Rd2 {[%emt 0:01:02]} Ra8 {[%emt 0:00:43]} 39. Rxd5 {[%emt 0:01:01]} a2 {[%emt 0:00:59]} 40. Qf3 {[%emt 0:00:30]} a1=Q+ {[%emt 0:00:30]} 41. Kg2 {[%emt 0:30:23]} Qbb1 {[%emt 0:02:16]} 42. Rh5 {[%emt 0:00:00]} Qg1+ {[%emt 0:01:40]} 0-1

[Event "41st Jacques-Lemans-Open 2022"]
[Site "St. Veit/Glan"]
[Date "2022.07.13"]
[Round "6.15"]
[White "Hresc, Vladimir"]
[Black "Hinteregger, Arthur"]
[Result "1-0"]
[ECO "C03"]
[WhiteElo "2308"]
[BlackElo "1993"]
[Annotator "ChessBase"]
[PlyCount "123"]
[EventDate "2022.07.09"]
[EventType "swiss"]
[EventCountry "AUT"]
[SourceTitle "playchess.com"]
[Source "ChessBase"]
[SourceQuality "1"]
[TimeControl "40/5400+30:1800+30"]

1. e4 {[%emt 0:00:03]} e6 {[%emt 0:00:07]} 2. d4 {[%emt 0:00:28]} d5 {[%emt 0:00:07]} 3. Nd2 {[%emt 0:00:10]} Be7 {[%emt 0:00:10]} 4. Bd3 {[%emt 0:00:34]} c5 {[%emt 0:00:36]} 5. dxc5 {[%emt 0:00:11]} Nf6 {[%emt 0:00:47]} 6. Qe2 {[%emt 0:04:27]} Nc6 {[%emt 0:04:40]} 7. c3 {[%emt 0:03:58]} Bxc5 {[%emt 0:06:30]} 8. Ngf3 {[%emt 0:00:26]} h6 {[%emt 0:05:06]} 9. e5 {[%emt 0:08:24]} Nd7 {[%emt 0:00:30]} 10. h4 {[%emt 0:06:46]} Be7 {[%emt 0:15:58]} 11. Nb3 {[%emt 0:00:49]} Nc5 {[%emt 0:04:38]} 12. Bc2 {[%emt 0:03:38]} Bd7 {[%emt 0:08:14]} 13. Bf4 {[%emt 0:02:09]} a5 {[%emt 0:02:29]} 14. Qe3 {[%emt 0:01:09]} Qb6 {[%emt 0:04:43]} 15. O-O {[%emt 0:06:54]} a4 {[%emt 0:03:52]} 16. Nbd4 {[%emt 0:02:43]} Nxd4 {[%emt 0:07:43]} 17. cxd4 {[%emt 0:00:39]} Na6 {[%emt 0:00:21]} 18. Qd2 {[%emt 0:04:24]} Nb4 {[%emt 0:04:31]} 19. Rfc1 {[%emt 0:05:26]} Nxc2 {[%emt 0:02:55]} 20. Rxc2 {[%emt 0:03:24]} Bc6 {[%emt 0:05:33]} 21. h5 {[%emt 0:01:12]} Qd8 {[%emt 0:03:52]} 22. Qe2 {[%emt 0:02:38]} O-O {[%emt 0:00:40]} 23. Qe3 {[%emt 0:00:33]} Kh7 {[%emt 0:00:24]} 24. g4 {[%emt 0:00:28]} Rg8 {[%emt 0:01:31]} 25. Kh2 {[%emt 0:00:36]} g5 {[%emt 0:01:10]} 26. hxg6+ {[%emt 0:06:30]} Rxg6 {[%emt 0:00:18]} 27. Rg1 {[%emt 0:00:02]} Kg7 {[%emt 0:00:59]} 28. Rcc1 {[%emt 0:01:10]} Qh8 {[%emt 0:00:52]} 29. Rg3 {[%emt 0:00:31]} Rg8 {[%emt 0:01:46]} 30. Rh3 {[%emt 0:04:13]} Qh7 {[%emt 0:00:59]} 31. Rg1 {[%emt 0:01:03]} Rh8 {[%emt 0:00:24]} 32. Rgg3 {[%emt 0:03:52]} Kf8 {[%emt 0:03:10]} 33. Rh5 {[%emt 0:00:34]} Ke8 {[%emt 0:01:37]} 34. Nh4 {[%emt 0:06:26]} Bxh4 {[%emt 0:01:23]} 35. Rxh4 {[%emt 0:00:04]} Qg7 {[%emt 0:00:26]} 36. f3 {[%emt 0:00:15]} h5 {[%emt 0:03:24]} 37. gxh5 {[%emt 0:03:04]} Rxg3 {[%emt 0:00:13]} 38. Bxg3 {[%emt 0:00:02]} Qh7 {[%emt 0:00:23]} 39. Bf4 {[%emt 0:05:52]} Qc2+ {[%emt 0:01:29]} 40. Qd2 {[%emt 0:01:48]} Qf5 {[%emt 0:00:31]} 41. h6 {[%emt 0:30:21]} Bb5 {[%emt 0:30:22]} 42. Rg4 {[%emt 0:02:36]} Bd3 {[%emt 0:02:52]} 43. Kg2 {[%emt 0:01:43]} Kd7 {[%emt 0:01:51]} 44. Rg5 {[%emt 0:06:42]} Qh7 {[%emt 0:00:12]} 45. Rg7 {[%emt 0:01:07]} Qf5 {[%emt 0:00:13]} 46. Kf2 {[%emt 0:00:42]} Rc8 {[%emt 0:01:52]} 47. Qb4 {[%emt 0:00:00]} Rc2+ {[%emt 0:00:00]} 48. Kg3 {[%emt 0:00:00]} Kc6 {[%emt 0:00:00]} 49. Qd6+ {[%emt 0:00:00]} Kb5 {[%emt 0:00:00]} 50. Qd7+ {[%emt 0:00:00]} Ka5 {[%emt 0:00:00]} 51. Qxf7 {[%emt 0:00:00]} Qxf7 {[%emt 0:00:00]} 52. Rxf7 {[%emt 0:00:00]} Rxb2 {[%emt 0:00:00]} 53. h7 {[%emt 0:00:00]} Bxh7 {[%emt 0:00:00]} 54. Rxh7 {[%emt 0:00:00]} b5 {[%emt 0:00:00]} 55. a3 {[%emt 0:00:00]} b4 {[%emt 0:00:00]} 56. Ra7+ {[%emt 0:00:00]} Kb5 {[%emt 0:00:00]} 57. Bc1 {[%emt 0:00:00]} Rb1 {[%emt 0:00:00]} 58. Rb7+ {[%emt 0:00:00]} Kc6 {[%emt 0:00:00]} 59. Rxb4 {[%emt 0:00:00]} Rxc1 {[%emt 0:00:00]} 60. Rxa4 {[%emt 0:00:00]} Rc4 {[%emt 0:00:00]} 61. Rxc4+ {[%emt 0:00:00]} dxc4 {[%emt 0:00:00]} 62. Kf2 {[%emt 0:00:00]} 1-0

[Event "41st Jacques-Lemans-Open 2022"]
[Site "St. Veit/Glan"]
[Date "2022.07.13"]
[Round "6.16"]
[White "Guetz, Wolfgang"]
[Black "Fahrner, Kurt"]
[Result "0-1"]
[ECO "B06"]
[WhiteElo "2034"]
[BlackElo "2331"]
[Annotator "ChessBase"]
[PlyCount "128"]
[EventDate "2022.07.09"]
[EventType "swiss"]
[EventCountry "AUT"]
[SourceTitle "playchess.com"]
[Source "ChessBase"]
[SourceQuality "1"]
[TimeControl "40/5400+30:1800+30"]

1. e4 {[%emt 0:00:01]} g6 {[%emt 0:00:23]} 2. d4 {[%emt 0:00:06]} Bg7 {[%emt 0:00:04]} 3. Nc3 {[%emt 0:00:07]} d6 {[%emt 0:00:07]} 4. Bg5 {[%emt 0:00:44]} c6 {[%emt 0:03:14]} 5. Qd2 {[%emt 0:03:02]} Qa5 {[%emt 0:02:43]} 6. h4 {[%emt 0:07:53]} Nf6 {[%emt 0:05:13]} 7. f3 {[%emt 0:19:23]} h6 {[%emt 0:05:32]} 8. Be3 {[%emt 0:01:36]} b5 {[%emt 0:00:34]} 9. Bd3 {[%emt 0:08:21]} Nbd7 {[%emt 0:08:26]} 10. Nh3 {[%emt 0:09:06]} Rb8 {[%emt 0:03:40]} 11. O-O {[%emt 0:06:22]} b4 {[%emt 0:07:28]} 12. Ne2 {[%emt 0:00:42]} Qc7 {[%emt 0:02:31]} 13. Nf2 {[%emt 0:04:42]} Nb6 {[%emt 0:05:19]} 14. f4 {[%emt 0:02:35]} h5 {[%emt 0:01:33]} 15. f5 {[%emt 0:05:03]} gxf5 {[%emt 0:08:53]} 16. exf5 {[%emt 0:00:19]} Nbd5 {[%emt 0:00:38]} 17. Bg5 {[%emt 0:01:29]} Qb6 {[%emt 0:03:01]} 18. Rae1 {[%emt 0:04:11]} Ba6 {[%emt 0:01:55]} 19. c4 {[%emt 0:05:55]} bxc3 {[%emt 0:02:32]} 20. bxc3 {[%emt 0:00:05]} Qa5 {[%emt 0:03:37]} 21. Rb1 {[%emt 0:08:18]} Rb6 {[%emt 0:03:39]} 22. Rxb6 {[%emt 0:01:19]} axb6 {[%emt 0:00:18]} 23. Bxa6 {[%emt 0:00:30]} Qxa6 {[%emt 0:00:05]} 24. Nf4 {[%emt 0:01:24]} Qc4 {[%emt 0:01:51]} 25. Nxd5 {[%emt 0:01:18]} Qxd5 {[%emt 0:01:02]} 26. Qc2 {[%emt 0:02:32]} O-O {[%emt 0:00:27]} 27. Nd3 {[%emt 0:00:28]} Ra8 {[%emt 0:00:32]} 28. Nb4 {[%emt 0:00:48]} Qc4 {[%emt 0:02:04]} 29. Rf3 {[%emt 0:03:52]} Ra3 {[%emt 0:04:18]} 30. Bxf6 {[%emt 0:01:11]} Bxf6 {[%emt 0:00:28]} 31. Rg3+ {[%emt 0:01:01]} Kf8 {[%emt 0:00:48]} 32. Kh2 {[%emt 0:00:59]} Bxd4 {[%emt 0:04:02]} 33. cxd4 {[%emt 0:00:01]} Qxb4 {[%emt 0:00:08]} 34. Rxa3 {[%emt 0:00:09]} Qxa3 {[%emt 0:00:11]} 35. Qxc6 {[%emt 0:00:13]} Qb4 {[%emt 0:01:15]} 36. Qa8+ {[%emt 0:00:38]} Kg7 {[%emt 0:00:07]} 37. Qe4 {[%emt 0:00:21]} Qd2 {[%emt 0:00:26]} 38. a4 {[%emt 0:00:40]} Kf6 {[%emt 0:01:41]} 39. Qf3 {[%emt 0:01:48]} Qxd4 {[%emt 0:00:17]} 40. Qxh5 {[%emt 0:00:37]} Qf4+ {[%emt 0:00:59]} 41. Kh1 {[%emt 0:07:51]} Qf1+ {[%emt 0:00:46]} 42. Kh2 {[%emt 0:02:18]} Qf4+ {[%emt 0:02:57]} 43. Kh1 {[%emt 0:00:10]} Qxf5 {[%emt 0:00:09]} 44. Qh8+ {[%emt 0:03:01]} Kg6 {[%emt 0:07:00]} 45. Qd8 {[%emt 0:02:13]} Qe5 {[%emt 0:07:03]} 46. Qg8+ {[%emt 0:02:12]} Qg7 {[%emt 0:04:07]} 47. Qa8 {[%emt 0:02:34]} Kh5 {[%emt 0:02:33]} 48. Qf3+ {[%emt 0:03:33]} Kxh4 {[%emt 0:01:32]} 49. Qf2+ {[%emt 0:03:29]} Kg5 {[%emt 0:01:39]} 50. Qxb6 {[%emt 0:01:51]} Qa1+ {[%emt 0:01:37]} 51. Qg1 {[%emt 0:00:36]} Qxa4 {[%emt 0:00:24]} 52. Qe3+ {[%emt 0:00:12]} Kg6 {[%emt 0:01:25]} 53. Qg3+ {[%emt 0:00:59]} Kf6 {[%emt 0:01:40]} 54. Qf3+ {[%emt 0:00:55]} Kg7 {[%emt 0:01:14]} 55. Qc3+ {[%emt 0:02:28]} f6 {[%emt 0:02:37]} 56. Qg3+ {[%emt 0:00:21]} Kf7 {[%emt 0:00:20]} 57. Qh3 {[%emt 0:00:58]} Qa1+ {[%emt 0:00:42]} 58. Kh2 {[%emt 0:00:06]} Qe5+ {[%emt 0:00:05]} 59. Kg1 {[%emt 0:00:45]} Qe4 {[%emt 0:01:57]} 60. Qh5+ {[%emt 0:00:19]} Kg7 {[%emt 0:00:51]} 61. Qh3 {[%emt 0:02:07]} d5 {[%emt 0:00:40]} 62. Qg3+ {[%emt 0:00:07]} Kf7 {[%emt 0:00:11]} 63. Qh3 {[%emt 0:00:18]} d4 {[%emt 0:00:08]} 64. Qh5+ {[%emt 0:00:08]} Kg7 {[%emt 0:00:05]} 0-1

[Event "41st Jacques-Lemans-Open 2022"]
[Site "St. Veit/Glan"]
[Date "2022.07.13"]
[Round "6.17"]
[White "Praznik, Niko"]
[Black "Fuchs, Patrick"]
[Result "1-0"]
[ECO "A06"]
[WhiteElo "2325"]
[BlackElo "1990"]
[Annotator "ChessBase"]
[PlyCount "61"]
[EventDate "2022.07.09"]
[EventType "swiss"]
[EventCountry "AUT"]
[SourceTitle "playchess.com"]
[Source "ChessBase"]
[SourceQuality "1"]
[TimeControl "40/5400+30:1800+30"]

1. Nf3 {[%emt 0:02:51]} d5 {[%emt 0:02:04]} 2. b3 {[%emt 0:00:47]} Nf6 {[%emt 0:01:41]} 3. Bb2 {[%emt 0:00:07]} e6 {[%emt 0:00:19]} 4. c4 {[%emt 0:00:13]} c6 {[%emt 0:00:10]} 5. e3 {[%emt 0:01:00]} Bd6 {[%emt 0:00:46]} 6. d4 {[%emt 0:00:26]} O-O {[%emt 0:00:42]} 7. Nbd2 {[%emt 0:00:35]} Nbd7 {[%emt 0:03:41]} 8. Bd3 {[%emt 0:00:22]} Re8 {[%emt 0:01:46]} 9. Ne5 {[%emt 0:00:35]} Qc7 {[%emt 0:00:58]} 10. f4 {[%emt 0:00:23]} b6 {[%emt 0:03:38]} 11. O-O {[%emt 0:03:37]} a5 {[%emt 0:11:07]} 12. g4 {[%emt 0:01:58]} Nf8 {[%emt 0:02:02]} 13. a3 {[%emt 0:10:10]} N6d7 {[%emt 0:03:45]} 14. g5 {[%emt 0:00:17]} Bb7 {[%emt 0:13:46]} 15. Rf3 {[%emt 0:04:30]} c5 {[%emt 0:01:20]} 16. Rh3 {[%emt 0:00:47]} Bxe5 {[%emt 0:02:52]} 17. fxe5 {[%emt 0:00:49]} Ng6 {[%emt 0:12:11]} 18. cxd5 {[%emt 0:08:53]} Bxd5 {[%emt 0:02:11]} 19. Ne4 {[%emt 0:00:14]} cxd4 {[%emt 0:08:25]} 20. Nd6 {[%emt 0:06:30]} Ndxe5 {[%emt 0:07:09]} 21. Nxe8 {[%emt 0:00:10]} Rxe8 {[%emt 0:00:10]} 22. Bxg6 {[%emt 0:01:33]} hxg6 {[%emt 0:04:56]} 23. Rc1 {[%emt 0:01:16]} Qb7 {[%emt 0:02:22]} 24. Qxd4 {[%emt 0:00:46]} f6 {[%emt 0:00:12]} 25. gxf6 {[%emt 0:02:08]} gxf6 {[%emt 0:00:02]} 26. Qh4 {[%emt 0:17:52]} Nf3+ {[%emt 0:00:33]} 27. Rxf3 {[%emt 0:00:06]} Bxf3 {[%emt 0:00:04]} 28. Qxf6 {[%emt 0:00:12]} Re7 {[%emt 0:00:59]} 29. Rf1 {[%emt 0:02:36]} e5 {[%emt 0:01:26]} 30. Rxf3 {[%emt 0:00:27]} Rf7 {[%emt 0:00:09]} 31. Qxf7+ {[%emt 0:00:07]} 1-0

[Event "41st Jacques-Lemans-Open 2022"]
[Site "St. Veit/Glan"]
[Date "2022.07.13"]
[Round "6.18"]
[White "Dotzer, Lukas"]
[Black "Hng, Mei-En Emmanuelle"]
[Result "1/2-1/2"]
[ECO "B07"]
[WhiteElo "2269"]
[BlackElo "1997"]
[Annotator "ChessBase"]
[PlyCount "33"]
[EventDate "2022.07.09"]
[EventType "swiss"]
[EventCountry "AUT"]
[SourceTitle "playchess.com"]
[Source "ChessBase"]
[SourceQuality "1"]
[TimeControl "40/5400+30:1800+30"]

1. e4 {[%emt 0:00:02]} d6 {[%emt 0:00:35]} 2. d4 {[%emt 0:00:17]} Nf6 {[%emt 0:00:21]} 3. Nc3 {[%emt 0:00:47]} g6 {[%emt 0:00:23]} 4. f3 {[%emt 0:00:59]} Bg7 {[%emt 0:01:01]} 5. Be3 {[%emt 0:00:35]} a6 {[%emt 0:00:41]} 6. Qd2 {[%emt 0:02:33]} b5 {[%emt 0:00:28]} 7. a3 {[%emt 0:01:57]} Nbd7 {[%emt 0:05:14]} 8. O-O-O {[%emt 0:02:36]} Nb6 {[%emt 0:02:05]} 9. Bh6 {[%emt 0:07:17]} Bxh6 {[%emt 0:32:10]} 10. Qxh6 {[%emt 0:01:04]} e6 {[%emt 0:07:50]} 11. e5 {[%emt 0:12:53]} Nfd5 {[%emt 0:01:56]} 12. Ne4 {[%emt 0:01:00]} Qe7 {[%emt 0:05:41]} 13. Qg7 {[%emt 0:13:53]} Qf8 {[%emt 0:04:04]} 14. Qxf8+ {[%emt 0:00:53]} Kxf8 {[%emt 0:00:21]} 15. exd6 {[%emt 0:00:12]} f5 {[%emt 0:00:10]} 16. d7 {[%emt 0:00:41]} Nxd7 {[%emt 0:00:50]} 17. Nc3 {[%emt 0:05:35]} 1/2-1/2

[Event "41st Jacques-Lemans-Open 2022"]
[Site "St. Veit/Glan"]
[Date "2022.07.13"]
[Round "6.19"]
[White "Miazhynski, Michael"]
[Black "Novosel, Lovro"]
[Result "1-0"]
[ECO "B50"]
[WhiteElo "1994"]
[BlackElo "2255"]
[Annotator "ChessBase"]
[PlyCount "103"]
[EventDate "2022.07.09"]
[EventType "swiss"]
[EventCountry "AUT"]
[SourceTitle "playchess.com"]
[Source "ChessBase"]
[SourceQuality "1"]
[TimeControl "40/5400+30:1800+30"]

1. e4 {[%emt 0:00:04]} c5 {[%emt 0:00:11]} 2. Nf3 {[%emt 0:00:07]} d6 {[%emt 0:00:04]} 3. c3 {[%emt 0:00:19]} Nf6 {[%emt 0:00:06]} 4. h3 {[%emt 0:00:40]} Nc6 {[%emt 0:00:21]} 5. Bd3 {[%emt 0:00:34]} d5 {[%emt 0:00:34]} 6. e5 {[%emt 0:03:31]} c4 {[%emt 0:00:24]} 7. Bc2 {[%emt 0:01:57]} Nd7 {[%emt 0:00:07]} 8. Qe2 {[%emt 0:01:50]} Qc7 {[%emt 0:00:56]} 9. e6 {[%emt 0:02:39]} fxe6 {[%emt 0:00:08]} 10. Ng5 {[%emt 0:00:28]} Nf6 {[%emt 0:24:20]} 11. O-O {[%emt 0:22:30]} Qe5 {[%emt 0:13:50]} 12. Qxe5 {[%emt 0:00:38]} Nxe5 {[%emt 0:00:07]} 13. Re1 {[%emt 0:08:16]} Nc6 {[%emt 0:03:40]} 14. Nxe6 {[%emt 0:01:20]} Bxe6 {[%emt 0:00:17]} 15. Rxe6 {[%emt 0:00:12]} Kf7 {[%emt 0:00:08]} 16. Re1 {[%emt 0:00:45]} e5 {[%emt 0:04:36]} 17. b3 {[%emt 0:01:46]} cxb3 {[%emt 0:03:34]} 18. Bxb3 {[%emt 0:02:43]} Rd8 {[%emt 0:00:28]} 19. Na3 {[%emt 0:01:31]} Bc5 {[%emt 0:03:22]} 20. d3 {[%emt 0:05:44]} Rhe8 {[%emt 0:06:07]} 21. Nc2 {[%emt 0:01:42]} Bb6 {[%emt 0:02:29]} 22. Re2 {[%emt 0:23:02]} Kg6 {[%emt 0:12:52]} 23. Nb4 {[%emt 0:07:19]} Na5 {[%emt 0:08:35]} 24. Ba4 {[%emt 0:00:34]} Re6 {[%emt 0:00:39]} 25. Bf4 {[%emt 0:01:46]} e4 {[%emt 0:03:19]} 26. Rae1 {[%emt 0:02:26]} Rc8 {[%emt 0:00:49]} 27. c4 {[%emt 0:02:09]} dxc4 {[%emt 0:02:27]} 28. dxe4 {[%emt 0:00:02]} Bd4 {[%emt 0:03:33]} 29. Bc2 {[%emt 0:06:52]} Nh5 {[%emt 0:00:40]} 30. Nd5 {[%emt 0:00:24]} Kf7 {[%emt 0:00:28]} 31. Bh2 {[%emt 0:01:28]} Nc6 {[%emt 0:00:53]} 32. e5 {[%emt 0:00:09]} g6 {[%emt 0:00:33]} 33. Kh1 {[%emt 0:00:43]} Rd8 {[%emt 0:00:52]} 34. Nc7 {[%emt 0:00:25]} Re7 {[%emt 0:00:04]} 35. g4 {[%emt 0:00:25]} Ng7 {[%emt 0:00:06]} 36. Nb5 {[%emt 0:00:46]} Bc5 {[%emt 0:00:19]} 37. f4 {[%emt 0:00:27]} a6 {[%emt 0:00:04]} 38. Nc3 {[%emt 0:00:41]} Nd4 {[%emt 0:00:16]} 39. Ne4 {[%emt 0:00:16]} Nxe2 {[%emt 0:05:22]} 40. Rxe2 {[%emt 0:00:02]} Bd4 {[%emt 0:01:34]} 41. Ng5+ {[%emt 0:04:35]} Kg8 {[%emt 0:00:52]} 42. f5 {[%emt 0:01:27]} gxf5 {[%emt 0:01:55]} 43. gxf5 {[%emt 0:00:28]} Nh5 {[%emt 0:14:24]} 44. Rd2 {[%emt 0:16:36]} Bb6 {[%emt 0:05:28]} 45. Rg2 {[%emt 0:00:08]} Kh8 {[%emt 0:04:26]} 46. e6 {[%emt 0:03:15]} Bc7 {[%emt 0:00:20]} 47. Bg1 {[%emt 0:03:38]} h6 {[%emt 0:04:14]} 48. Bc5 {[%emt 0:01:43]} hxg5 {[%emt 0:02:57]} 49. Bxe7 {[%emt 0:00:07]} Rg8 {[%emt 0:00:25]} 50. f6 {[%emt 0:00:09]} Nf4 51. f7 {[%emt 0:00:25]} Nxg2 {[%emt 0:01:14]} 52. Bf6+ {[%emt 0:00:06]} 1-0

[Event "41st Jacques-Lemans-Open 2022"]
[Site "St. Veit/Glan"]
[Date "2022.07.13"]
[Round "6.20"]
[White "Caruso, Augusto"]
[Black "Praxmarer, Christian"]
[Result "1/2-1/2"]
[ECO "C05"]
[WhiteElo "2132"]
[BlackElo "1906"]
[Annotator "ChessBase"]
[PlyCount "71"]
[EventDate "2022.07.09"]
[EventType "swiss"]
[EventCountry "AUT"]
[SourceTitle "playchess.com"]
[Source "ChessBase"]
[SourceQuality "1"]
[TimeControl "40/5400+30:1800+30"]

1. e4 {[%emt 0:00:20]} e6 {[%emt 0:00:15]} 2. d4 {[%emt 0:00:04]} d5 {[%emt 0:00:05]} 3. Nd2 {[%emt 0:01:13]} Nf6 {[%emt 0:03:13]} 4. e5 {[%emt 0:00:53]} Nfd7 {[%emt 0:00:02]} 5. Bd3 {[%emt 0:00:11]} c5 {[%emt 0:00:39]} 6. c3 {[%emt 0:00:05]} Nc6 {[%emt 0:00:24]} 7. Ngf3 {[%emt 0:01:23]} cxd4 {[%emt 0:01:49]} 8. cxd4 {[%emt 0:00:07]} f5 {[%emt 0:06:58]} 9. exf6 {[%emt 0:04:06]} Nxf6 {[%emt 0:06:43]} 10. O-O {[%emt 0:01:02]} Bd6 {[%emt 0:01:48]} 11. b3 {[%emt 0:01:52]} O-O {[%emt 0:00:51]} 12. Bb2 {[%emt 0:00:16]} Bd7 {[%emt 0:11:15]} 13. Ne5 {[%emt 0:04:44]} Qe8 {[%emt 0:18:49]} 14. f4 {[%emt 0:05:23]} Nb4 {[%emt 0:09:40]} 15. Bb1 {[%emt 0:05:00]} Bb5 {[%emt 0:00:44]} 16. Rf3 {[%emt 0:05:42]} Qh5 {[%emt 0:11:18]} 17. a3 {[%emt 0:02:12]} Nc6 {[%emt 0:00:36]} 18. Qe1 {[%emt 0:06:40]} Qh6 {[%emt 0:07:18]} 19. Nxc6 {[%emt 0:05:26]} Bxf4 {[%emt 0:00:01]} 20. Rxf4 {[%emt 0:12:56]} Qxf4 {[%emt 0:00:04]} 21. Ne5 {[%emt 0:00:08]} Rac8 {[%emt 0:04:29]} 22. Ndf3 {[%emt 0:01:21]} Ng4 {[%emt 0:03:03]} 23. Nxg4 {[%emt 0:11:01]} Qxg4 {[%emt 0:00:05]} 24. Qe3 {[%emt 0:01:21]} Rf6 {[%emt 0:03:37]} 25. Bd3 {[%emt 0:01:13]} Bxd3 {[%emt 0:04:23]} 26. Qxd3 {[%emt 0:00:06]} Qe4 {[%emt 0:01:26]} 27. Qf1 {[%emt 0:04:28]} Qe3+ {[%emt 0:00:37]} 28. Kh1 {[%emt 0:00:17]} Qxb3 {[%emt 0:00:55]} 29. Rc1 {[%emt 0:01:03]} Rc2 {[%emt 0:01:06]} 30. Rxc2 {[%emt 0:01:46]} Qxc2 {[%emt 0:00:01]} 31. Bc1 {[%emt 0:02:21]} h6 {[%emt 0:00:23]} 32. Be3 {[%emt 0:00:20]} Qb3 {[%emt 0:00:36]} 33. Qc1 {[%emt 0:00:08]} Qc4 {[%emt 0:00:52]} 34. Kg1 {[%emt 0:02:32]} b5 {[%emt 0:00:07]} 35. Qd2 {[%emt 0:06:35]} Qb3 {[%emt 0:00:32]} 36. Qc1 {[%emt 0:01:08]} 1/2-1/2